lending/lending_fUSD_20240504
["ID","MTS","AMOUNT","RATE_DAILY","PERIOD"]
[325419295,1714858243339,-153.13883935,0.00037065,7]
[325419296,1714858243348,-356.35010784,0.00037214,10]
[325419297,1714858243358,-715.69029495,0.0003723,4]
[325419298,1714858243367,-151.0,0.00037429,2]
[325419299,1714858243376,-150.0,0.000376,9]
[325419300,1714858243386,-153.13883937,0.00037636,7]
[325419301,1714858243397,-161.12,0.00037671,2]
[325419302,1714858243407,-153.23077717,0.00037763,7]
[325419303,1714858243417,-155.27696905,0.00037789,7]
[325419304,1714858243427,-566.08755279,0.0003797,2]
[325419305,1714858243439,-566.08755279,0.0003797,2]
[325419306,1714858243449,-566.08755279,0.0003797,2]
[325419307,1714858243460,-150.0,0.00037972,7]
[325419308,1714858243470,-161.58299928,0.00037972,7]
[325419309,1714858243481,-585.02034,0.00038,2]
[325419310,1714858243490,-302.0,0.00038058,4]
[325419311,1714858243500,-150.0,0.000381,9]
[325419312,1714858243510,-153.23077717,0.00038163,7]
[325419313,1714858243523,-2143.4,0.00038276,15]
[325419314,1714858243533,-500.0,0.00038355,10]
[325419315,1714858243542,-500.0,0.00038355,10]
[325419316,1714858243552,-200.0,0.00038356,2]
[325419317,1714858243564,-152.33231404,0.00038377,7]
[325419318,1714858243574,-1000.0,0.000384,7]
[325419319,1714858243584,-152.94672626,0.00038482,7]
[325419320,1714858243597,-10213.21846603,0.0003849,30]
[325419321,1714858243607,-150.0,0.00038499,7]
[325419322,1714858243618,-158.15323033,0.00038547,7]
[325419323,1714858243628,-150.0,0.000386,9]
[325419324,1714858243637,-153.23077717,0.00038635,7]
[325419325,1714858243646,-1000.0,0.00038904,120]
[325419326,1714858243656,-152.94672626,0.00038908,7]
[325419327,1714858243665,-566.08755279,0.00038999,2]
[325419328,1714858243674,-132174.79842871,0.00039,10]
[325419329,1714858243683,-150.0,0.00039027,7]
[325419330,1714858243692,-150.0,0.000391,10]
[325419331,1714858243702,-1375.0,0.000392,7]
[325419332,1714858243711,-5000.0,0.00039241,30]
[325419333,1714858243722,-161.12,0.00039384,2]
[325419334,1714858243732,-500.0,0.00039451,10]
[325419335,1714858243741,-500.0,0.00039451,10]
[325419336,1714858243751,-150.0,0.00039554,7]
[325419337,1714858243761,-150.0,0.000396,10]
[325419338,1714858243770,-154.98577821,0.00039815,7]
[325419339,1714858243779,-241.27,0.00039856,2]
[325419340,1714858243788,-310.83,0.00039856,2]
[325419341,1714858243797,-152.94672626,0.00039916,7]
[325419342,1714858243806,-356.35010784,0.00039926,13]
[325419343,1714858243816,-152.33231404,0.0003995,7]
[325419344,1714858243826,-566.08755279,0.00039999,2]
[325419345,1714858243835,-304.48306034,0.0004,15]
[325419346,1714858243844,-241.81952181,0.0004,15]
[325419347,1714858243853,-2857.58476678,0.0004,5]
[325419348,1714858243862,-400.47449415,0.0004,2]
[325419349,1714858243871,-900.0,0.0004,120]
[325419350,1714858243881,-1000000.0,0.0004,30]
[325419351,1714858243890,-151.0,0.0004,14]
[325419352,1714858243899,-83364.0,0.0004,10]
[325419353,1714858243909,-488.46440809,0.0004001,30]
[325419354,1714858243918,-153.23077719,0.00040019,30]
[325419355,1714858243927,-150.0,0.00040081,7]
[325419356,1714858243936,-150.0,0.000401,10]
[325419357,1714858243945,-152.0,0.00040106,4]
[325419358,1714858243954,-155.32697764,0.00040153,30]
[325419359,1714858243964,-2627.9,0.00040327,79]
[325419360,1714858243973,-152.9467263,0.00040512,30]
[325419361,1714858243983,-500.0,0.00040547,10]
[325419362,1714858243992,-500.0,0.00040547,10]
[325419363,1714858244002,-150.0,0.000406,10]
[325419364,1714858244011,-150.0,0.00040609,7]
[325419365,1714858244021,-150.0,0.00040733,2]
[325419366,1714858244030,-150.0,0.00040737,2]
[325419367,1714858244040,-150.0,0.0004074,2]
[325419368,1714858244049,-150.0,0.00040785,2]
[325419369,1714858244058,-150.0,0.00040795,2]
[325419370,1714858244067,-150.0,0.00040807,2]
[325419371,1714858244076,-300.0,0.00040885,2]
[325419372,1714858244085,-16135.15845593,0.0004098,2]
[325419373,1714858244099,-3175.82164568,0.0004098,2]
[325419374,1714858244110,-476.2010242,0.0004098,2]
[325419375,1714858244122,-7600.64259491,0.0004098,2]
[325419376,1714858244145,-1848.7835296,0.0004098,2]
[325419377,1714858244155,-394.35855199,0.0004098,2]
[325419378,1714858245059,-324.14591879,0.00012999,2]
[325419379,1714858245069,-175.72,0.00015163,2]
[325419380,1714858245078,-1227.0,0.00021253,2]
[325419381,1714858245088,-21745.73458213,0.0004098,2]
[325419382,1714858245099,-29476.18022524,0.0004098,2]
[325419383,1714858245126,-655.96700915,0.0004098,2]
[325419384,1714858245138,-392.13542918,0.0004098,2]
[325419385,1714858245150,-526.72600002,0.0004098,2]
[325419386,1714858245177,-300.00169388,0.0004098,2]
[325419441,1714858246717,-806.4,0.00027397,10]
[325419442,1714858246729,-49315.64256,0.0004098,2]
[325419473,1714859432251,-400.70627376,0.00010881,2]
[325419475,1714859432261,-210.65983024,0.00010881,2]
[325419481,1714859432352,-2844.85880751,0.00010881,2]
[325419482,1714859432369,-536.56930293,0.00010882,2]
[325419483,1714859432379,-4170.7599022,0.00010882,2]
[325419484,1714859432425,-434.00509907,0.00010882,2]
[325419485,1714859432438,-527.18712473,0.00010882,2]
[325419486,1714859432450,-61.187874,0.00010882,2]
[325419487,1714859432460,-150.0,0.00010899,2]
[325419488,1714859432470,-150.0,0.00010899,2]
[325419489,1714859432480,-870.79819809,0.000109,2]
[325419490,1714859432492,-1783.10372807,0.000109,2]
[325419491,1714859432502,-178.3,0.00011004,2]
[325419492,1714859432512,-1290.8,0.00011201,2]
[325419493,1714859432522,-4003.31960407,0.00011208,2]
[325419494,1714859432535,-523.28591813,0.00011208,2]
[325419495,1714859432583,-590.12,0.00011208,2]
[325419496,1714859432596,-638.49582452,0.00011208,2]
[325419497,1714859432608,-554.50865328,0.00011208,2]
[325419498,1714859432617,-112.88340723,0.00011269,2]
[325419499,1714859432629,-1670.86659277,0.00011269,2]
[325419500,1714859432638,-250.0,0.00011289,2]
[325419501,1714859432648,-283.10828723,0.00011344,2]
[325419502,1714859432660,-10031.38171277,0.00011344,2]
[325419503,1714859432670,-3472.69,0.00011346,2]
[325419504,1714859432682,-950.37,0.00011346,2]
[325419505,1714859432692,-150.99,0.00011346,2]
[325419506,1714859432701,-224.99,0.00011346,2]
[325419507,1714859432711,-999.99,0.00011346,2]
[325419508,1714859432721,-266.98,0.00011367,2]
[325419509,1714859432732,-256.31,0.0001144,2]
[325419510,1714859432741,-2558.85,0.0001144,2]
[325419512,1714859432751,-716.61,0.0001149,2]
[325419514,1714859432761,-10000.0,0.00011502,2]
[325419515,1714859432770,-8923.36,0.00011932,2]
[325419516,1714859432780,-210.0,0.00011989,2]
[325419517,1714859432790,-261.17,0.00012021,2]
[325419518,1714859432799,-157.58,0.00012039,2]
[325419519,1714859432809,-23890.0,0.00012053,2]
[325419520,1714859432818,-261.17,0.00012054,2]
[325419521,1714859432827,-261.17,0.00012087,2]
[325419522,1714859432837,-261.17,0.0001212,2]
[325419523,1714859432846,-261.17,0.00012153,2]
[325419524,1714859432856,-170.86,0.00012177,2]
[325419525,1714859432866,-261.17,0.00012186,2]
[325419526,1714859432875,-261.17,0.00012219,2]
[325419527,1714859432886,-261.17,0.00012252,2]
[325419528,1714859432896,-151.29251735,0.00012263,2]
[325419529,1714859432908,-261.17,0.00012285,2]
[325419530,1714859432917,-261.17,0.00012318,2]
[325419531,1714859432928,-261.17,0.00012351,2]
[325419532,1714859432938,-633.52,0.00012366,2]
[325419533,1714859432948,-223.65370089,0.00012366,2]
[325419534,1714859432958,-432.32117938,0.00012367,2]
[325419535,1714859432968,-53493.0663,0.00012368,2]
[325419536,1714859432978,-261.17,0.00012384,2]
[325419537,1714859432988,-261.17,0.00012417,2]
[325419538,1714859432998,-261.17,0.0001245,2]
[325419539,1714859433012,-188.03404071,0.00012472,2]
[325419540,1714859433022,-255305.82197684,0.00012482,2]
[325419541,1714859433035,-5314.0001,0.00012482,2]
[325419542,1714859433047,-46423.00998,0.00012482,2]
[325419543,1714859433060,-15066.99998,0.00012482,2]
[325419544,1714859433072,-853.15156266,0.00012482,2]
[325419545,1714859433083,-741.8811006,0.00012482,2]
[325419546,1714859433142,-13385.39801569,0.00012482,2]
[325419547,1714859433154,-402.0,0.00012482,2]
[325419548,1714859433167,-15089.44497182,0.00012482,2]
[325419549,1714859433181,-8902.88752742,0.00012482,2]
[325419550,1714859433192,-447.53187127,0.00012482,2]
[325419551,1714859433204,-2791.05680083,0.00012482,2]
[325419552,1714859433311,-13503.54683776,0.00012482,2]
[325419553,1714859433368,-982.21119649,0.00012482,2]
[325419554,1714859437887,-556.34975306,0.00012482,2]
[325419555,1714859437899,-1340.01178555,0.00012482,2]
[325419556,1714859437914,-514.0,0.00012482,2]
[325419557,1714859437925,-439.56655739,0.00012482,2]
[325419558,1714859437939,-305.4913623,0.00012482,2]
[325419559,1714859437951,-722.52774619,0.00012482,2]
[325419560,1714859437963,-2630.05297866,0.00012482,2]
[325419561,1714859437975,-3055.35126391,0.00012482,2]
[325419562,1714859437986,-999.71132886,0.00012482,2]
[325419563,1714859437999,-313.27,0.00012482,2]
[325419564,1714859438011,-8766.76781148,0.00012482,2]
[325419565,1714859438035,-17092.60688411,0.00012482,2]
[325419566,1714859438047,-319.395,0.00012482,2]
[325419567,1714859438059,-3064.23331078,0.00012482,2]
[325419568,1714859438070,-2076.48894511,0.00012482,2]
[325419569,1714859438082,-6714.73959698,0.00012482,2]
[325419570,1714859438093,-8569.60155393,0.00012482,2]
[325419571,1714859438105,-14846.03604008,0.00012482,2]
[325419572,1714859438218,-4041.86667191,0.00012482,2]
[325419573,1714859438231,-26421.04453382,0.00012482,2]
[325419574,1714859438245,-11100.04115182,0.00012482,2]
[325419575,1714859438256,-509.16789362,0.00012482,2]
[325419576,1714859438268,-1940.94509564,0.00012482,2]
[325419577,1714859438280,-7969.17193469,0.00012482,2]
[325419578,1714859438291,-3131.87472,0.00012482,2]
[325419579,1714859438303,-22265.01929867,0.00012482,2]
[325419582,1714859438315,-2005.591719,0.00012482,2]
[325419589,1714859438421,-85166.6848361,0.00012482,2]
[325419591,1714859438435,-699.94799101,0.00012482,2]
[325419593,1714859438447,-597.24,0.00012482,2]
[325419595,1714859438460,-262.65011809,0.00012482,2]
[325419598,1714859438472,-1284.46871091,0.00012482,2]
[325419600,1714859438484,-66313.63001943,0.00012482,2]
[325419602,1714859438496,-1708.87667369,0.00012482,2]
[325419604,1714859438506,-56.12332631,0.00012483,2]
[325419606,1714859438518,-205.04667369,0.00012483,2]
[325419607,1714859438527,-608.60327631,0.000125,2]
[325419608,1714859438540,-12181.13128989,0.000125,2]
[325419609,1714859438549,-261.17,0.00012516,2]
[325419610,1714859438559,-261.17,0.00012549,2]
[325419611,1714859438569,-151.29251735,0.00012582,2]
[325419612,1714859438578,-261.17,0.00012582,2]
[325419613,1714859438587,-158.9,0.00012605,2]
[325419614,1714859438597,-261.17,0.00012615,2]
[325419615,1714859438606,-261.17,0.00012647,2]
[325419616,1714859438615,-160.30085168,0.0001269,2]
[325419617,1714859438625,-1152.06988074,0.00012799,2]
[325419618,1714859438635,-7395.8192,0.00012899,2]
[325419619,1714859438644,-1482.6251,0.00012899,2]
[325419620,1714859438654,-500.0,0.00012899,2]
[325419621,1714859438664,-465.3923,0.00012899,2]
[325419622,1714859438673,-151.29251735,0.000129,2]
[325419623,1714859438684,-200.0,0.000129,4]
[325419624,1714859438693,-716.61,0.00012926,2]
[325419625,1714859438703,-1034.6412428,0.00012998,3]
[325419626,1714859438712,-202.43844117,0.00012998,3]
[325419627,1714859438723,-377.18870267,0.00012999,2]
[325419628,1714859438732,-82493.39227267,0.00013,2]
[325419629,1714859438745,-283.7531272,0.00013,2]
[325419630,1714859438790,-92549.03119487,0.00013,2]
[325419631,1714859438802,-408.7428029,0.00013,2]
[325419632,1714859438813,-9890.78103409,0.00013,2]
[325419633,1714859438825,-419.6410628,0.00013,2]
[325419634,1714859438836,-603.77319818,0.00013,2]
[325419635,1714859438848,-518.94618326,0.00013,2]
[325419636,1714859438859,-652.2519,0.00013,2]
[325419637,1714859438871,-309.3964289,0.00013,2]
[325419638,1714859438888,-255.53745705,0.00013,2]
[325419639,1714859438901,-2109.83826179,0.00013,2]
[325419640,1714859438913,-4835.33666646,0.00013,2]
[325419641,1714859438925,-420.25335452,0.00013,2]
[325419642,1714859438938,-901.19631038,0.00013,2]
[325419643,1714859438949,-3223.7629553,0.00013,2]
[325419644,1714859438961,-38857.76400676,0.00013,2]
[325419645,1714859438971,-188.60134713,0.00013,2]
[325419646,1714859438982,-518.89,0.00013151,2]
[325419647,1714859438992,-432.41,0.00013151,2]
[325419648,1714859439001,-360.34,0.00013151,2]
[325419649,1714859439011,-300.28,0.00013151,2]
[325419650,1714859439020,-250.24,0.00013151,2]
[325419651,1714859439029,-208.53,0.00013151,2]
[325419652,1714859439038,-173.78,0.00013151,2]
[325419653,1714859439048,-868.9,0.00013151,2]
[325419654,1714859439058,-174.70437332,0.00013168,2]
[325419655,1714859439067,-338.52,0.00013425,2]
[325419656,1714859439077,-200.0,0.00013699,2]
[325419657,1714859439087,-500.0,0.00013699,2]
[325419658,1714859439096,-2751.0,0.00013699,2]
[325419659,1714859439105,-965.93,0.00013778,2]
[325419660,1714859439115,-1036.73785114,0.00014,2]
[325419661,1714859439124,-716.61,0.00014362,2]
[325419662,1714859439134,-187.34418225,0.000149,2]
[325419663,1714859439143,-155.0,0.00015,2]
[325419664,1714859439153,-8086.31593858,0.00015,2]
[325419665,1714859439170,-300.0,0.00015068,2]
[325419666,1714859439182,-429.92,0.00015218,2]
[325419667,1714859439191,-429.92,0.00015222,2]
[325419668,1714859439201,-429.92,0.00015226,2]
[325419669,1714859439210,-429.92,0.0001523,2]
[325419670,1714859439220,-429.92,0.00015234,2]
[325419671,1714859439230,-429.92,0.00015238,2]
[325419672,1714859439239,-429.92,0.00015242,2]
[325419673,1714859439249,-429.92,0.00015246,2]
[325419674,1714859439258,-429.92,0.0001525,2]
[325419675,1714859439267,-429.92,0.00015254,2]
[325419676,1714859439277,-429.92,0.00015258,2]
[325419677,1714859439287,-429.92,0.00015262,2]
[325419678,1714859439296,-429.92,0.00015266,2]
[325419679,1714859439306,-429.92,0.0001527,2]
[325419680,1714859439315,-429.92,0.00015274,2]
[325419681,1714859439325,-429.92,0.00015278,2]
[325419682,1714859439337,-49.38230083,0.00015282,2]
[325419683,1714859439349,-380.53769917,0.00015282,2]
[325419684,1714859439359,-429.92,0.00015286,2]
[325419685,1714859439369,-429.92,0.0001529,2]
[325419686,1714859439378,-429.92,0.00015294,2]
[325419687,1714859439388,-716.61,0.00015798,2]
[325419688,1714859439397,-167.0,0.00015831,2]
[325419689,1714859439406,-816.54,0.00016116,2]
[325419690,1714859439416,-300.0,0.00016438,2]
[325419691,1714859439425,-300.0,0.00016438,2]
[325419692,1714859439438,-300.0,0.00016438,2]
[325419693,1714859439447,-300.0,0.00016438,2]
[325419694,1714859439457,-300.0,0.00016438,2]
[325419695,1714859439466,-300.0,0.00016438,2]
[325419696,1714859439475,-300.0,0.00016438,2]
[325419697,1714859439485,-300.0,0.00016438,2]
[325419698,1714859439494,-300.0,0.00016438,2]
[325419699,1714859439504,-300.0,0.00016438,2]
[325419700,1714859439513,-300.0,0.00016438,2]
[325419701,1714859439523,-300.0,0.00016438,2]
[325419702,1714859439532,-300.0,0.00016438,2]
[325419703,1714859439541,-310.51535247,0.00016438,2]
[325419704,1714859439550,-300.0,0.00016438,2]
[325419705,1714859439559,-178.3,0.00016507,2]
[325419706,1714859439570,-716.61,0.00017235,2]
[325419707,1714859439580,-169.77464919,0.0001788,2]
[325419708,1714859439590,-170.86,0.00018266,2]
[325419709,1714859439599,-169.77464917,0.00018404,2]
[325419710,1714859439610,-219.16464854,0.0002,4]
[325419711,1714859439620,-6227.01127323,0.0002,2]
[325419712,1714859439630,-1011.2,0.0002,2]
[325419713,1714859439640,-309.2,0.0002,2]
[325419714,1714859439650,-150.99,0.00020546,2]
[325419715,1714859439661,-150.99,0.00020546,2]
[325419716,1714859439671,-155.0,0.000209,2]
[325419717,1714859439684,-542.0,0.00021051,2]
[325419718,1714859439694,-151.355,0.00021051,2]
[325419719,1714859439704,-151.0,0.00021051,2]
[325419720,1714859439714,-151.0,0.00021051,2]
[325419721,1714859439724,-1056.0,0.00021051,2]
[325419723,1714859439734,-1152.06988072,0.00021418,2]
[325419725,1714859439744,-500.0,0.000219,7]
[325419726,1714859439755,-6757.61638509,0.000219,2]
[325419727,1714859439765,-2000.0,0.00021918,2]
[325419728,1714859439776,-250.0,0.00021918,2]
[325419729,1714859439787,-17693.23462494,0.00023,2]
[325419730,1714859439798,-174.7043733,0.00023079,2]
[325419731,1714859439808,-2000.61208485,0.000234,2]
[325419733,1714859439820,-432.11468821,0.00024,2]
[325419735,1714859439830,-542.0,0.00024051,2]
[325419737,1714859439840,-180.0,0.0002423,2]
[325419738,1714859439851,-169.77464917,0.00024326,2]
[325419739,1714859439861,-888.0,0.00024657,2]
[325419741,1714859439871,-338.52,0.00024658,2]
[325419743,1714859439883,-5000.0,0.00025,2]
[325419746,1714859439893,-2607.87522376,0.00025,2]
[325419748,1714859439906,-471.39951687,0.00025,2]
[325419749,1714859439916,-456.66329758,0.00025,7]
[325419750,1714859439927,-965.93,0.00025011,2]
[325419751,1714859439938,-1737.38851403,0.00027,2]
[325419752,1714859439950,-2311.885473,0.00027,2]
[325419753,1714859439960,-2058.76,0.00027068,15]
[325419754,1714859439971,-161.12,0.00027397,2]
[325419755,1714859439982,-210.557337,0.00029604,2]
[325419756,1714859439992,-19349.78395576,0.0003,4]
[325419757,1714859440003,-735.48846237,0.0003,4]
[325419758,1714859440013,-5677.45044794,0.0003,2]
[325419759,1714859440023,-10521.42260191,0.0003,4]
[325419760,1714859440034,-1152.06988072,0.00030036,2]
[325419761,1714859440044,-250.0,0.00030136,5]
[325419762,1714859440055,-350.0,0.00030136,10]
[325419763,1714859440065,-169.77464917,0.00030247,2]
[325419764,1714859440077,-2500.0,0.000305,3]
[325419765,1714859440088,-2058.76,0.00030804,15]
[325419766,1714859440098,-150.0,0.000309,2]
[325419767,1714859440108,-151.0,0.00031448,2]
[325419768,1714859440119,-157.85978082,0.00031769,7]
[325419769,1714859440129,-490.0,0.00031774,5]
[325419770,1714859440140,-154.69574402,0.00031848,7]
[325419771,1714859440150,-157.85978082,0.00031913,7]
[325419772,1714859440160,-152.0,0.00031996,2]
[325419773,1714859440171,-152.33231404,0.00032408,7]
[325419774,1714859440184,-153.0,0.00032544,2]
[325419775,1714859440194,-154.69574402,0.00032739,7]
[325419776,1714859440205,-159.26029186,0.00032867,7]
[325419777,1714859440215,-159.26029186,0.00032929,7]
[325419778,1714859440226,-174.7043733,0.00032989,5]
[325419779,1714859440236,-1688.114527,0.00033,2]
[325419780,1714859440247,-154.0,0.00033092,2]
[325419781,1714859440257,-167.0,0.00033284,2]
[325419782,1714859440268,-154.69574402,0.00033379,7]
[325419783,1714859440279,-155.0,0.0003364,2]
[325419784,1714859440290,-693.0,0.00034156,2]
[325419785,1714859440301,-153.09613825,0.00034183,7]
[325419786,1714859440312,-202.85905703,0.00034188,2]
[325419787,1714859440322,-2058.76,0.0003454,15]
[325419788,1714859440332,-26330.23490107,0.000349,2]
[325419789,1714859440343,-1285.12188479,0.00035,4]
[325419790,1714859440353,-154.9857782,0.00035137,7]
[325419791,1714859440364,-338.52,0.0003589,120]
[325419792,1714859440374,-159.26029186,0.00036,7]
[325419793,1714859440384,-169.77464917,0.00036169,2]
[325419794,1714859440395,-965.93,0.00036244,120]
[325419795,1714859440405,-1000.0,0.000365,2]
[325419796,1714859440415,-152.0,0.00036599,3]
[325419797,1714859440426,-159.26029186,0.00036835,7]
[325419798,1714859440440,-155.30252456,0.00036879,2]
[325419799,1714859440450,-159.26029186,0.00036971,7]
[325419800,1714859440461,-500.0,0.00037871,3]
[325419803,1714859440471,-500.0,0.0003788,3]
[325419804,1714859440481,-500.0,0.00037889,3]
[325419805,1714859440492,-500.0,0.00037897,3]
[325419806,1714859440502,-500.0,0.00037906,3]
[325419807,1714859440513,-500.0,0.00037915,3]
[325419808,1714859440523,-500.0,0.00037924,3]
[325419809,1714859440534,-500.0,0.00037933,3]
[325419810,1714859440544,-152.96433896,0.00038004,7]
[325419811,1714859440555,-153.85011202,0.00038099,7]
[325419812,1714859440566,-159.26029186,0.00038243,7]
[325419813,1714859440576,-2058.76,0.00038276,15]
[325419814,1714859440587,-500.0,0.00038355,10]
[325419815,1714859440598,-500.0,0.00038355,10]
[325419816,1714859440608,-1000.0,0.00038356,30]
[325419817,1714859440619,-159.26029193,0.00038389,7]
[325419819,1714859440629,-151.0,0.00039134,2]
[325419820,1714859440639,-500.0,0.00039451,10]
[325419821,1714859440649,-337.28885913,0.00039451,10]
[325419822,1714859440660,-154.87041203,0.00039512,7]
[325419823,1714859440671,-157.050505,0.00039798,36]
[325419824,1714859440682,-700.0,0.000399,14]
[325419825,1714859440692,-2857.58476678,0.0004,5]
[325419826,1714859440703,-578.0147177,0.0004,120]
[325419827,1714859440714,-552.3194951,0.0004,2]
[325419828,1714859440724,-527593.18790089,0.0004,30]
[325419829,1714859440739,-3251.55806868,0.0004,30]
[325419830,1714859440752,-26173.14939622,0.0004,30]
[325419831,1714859440765,-321.445025,0.0004,30]
[325419832,1714859440805,-9755.88664348,0.0004,30]
[325419833,1714859440817,-2412.92750001,0.0004,30]
[325419834,1714859442019,-299.081,0.0001785,2]
[325419835,1714859442031,-334559.87157001,0.0004,30]
[325419836,1714859442046,-95931.97389571,0.0004,30]
[325419837,1714859442058,-472.85623952,0.0004,15]
[325419838,1714859442070,-92794.71812371,0.0004,10]
[325419839,1714859442082,-377.99716617,0.0004,10]
[325419840,1714859442095,-9999.0,0.0004,14]
[325419841,1714859442107,-390.77152648,0.0004001,30]
[325419842,1714859442119,-884.5,0.00040055,2]
[325419843,1714859442132,-157.050505,0.00040198,38]
[325419844,1714859442144,-177.63320564,0.00040237,30]
[325419845,1714859442157,-157.050505,0.00040498,40]
[325419846,1714859442170,-224.25304364,0.00040547,10]
[325419847,1714859442182,-150.0,0.00040599,2]
[325419848,1714859442195,-1000.0,0.000406,14]
[325419849,1714859442208,-3647.19944605,0.00040661,2]
[325419850,1714859442220,-1200.0,0.000407,14]
[325419851,1714859442232,-150.0,0.00040792,2]
[325419852,1714859442245,-157.050505,0.00040798,42]
[325419853,1714859442259,-200.0,0.000408,14]
[325419854,1714859442272,-420.99777681,0.0004088,2]
[325419855,1714859442284,-160.0,0.000409,16]
[325419856,1714859442297,-200.0,0.000409,14]
[325419857,1714859442309,-191.96792791,0.000409,120]
[325419858,1714859442321,-300.0,0.00040905,2]
[325419859,1714859442333,-150.0,0.00040919,2]
[325419860,1714859442345,-150.0,0.00040959,7]
[325419861,1714859442357,-1371.68447405,0.0004097,120]
[325419862,1714859442369,-300.3161631,0.00040971,2]
[325419863,1714859442380,-1023.80895064,0.00040976,2]
[325419864,1714859442392,-258.47419654,0.00040977,4]
[325419865,1714859442404,-1224.62477475,0.00040977,4]
[325419866,1714859442416,-214.24802093,0.00040977,4]
[325419867,1714859442428,-617.74433242,0.00040977,4]
[325419868,1714859442442,-155.0,0.00040979,4]
[325419869,1714859442453,-523.65140554,0.00040979,4]
[325419870,1714859442465,-161162.93081724,0.0004098,2]
[325419871,1714859442480,-3245.80301814,0.0004098,2]
[325419872,1714859442508,-963.73178324,0.0004098,2]
[325419873,1714859442522,-915.94314115,0.0004098,2]
[325419874,1714859442536,-1933.65468565,0.0004098,2]
[325419875,1714859442550,-667.34675804,0.0004098,2]
[325419877,1714859442565,-973.85939456,0.0004098,2]
[325419880,1714859442584,-384.83468693,0.0004098,2]
[325419882,1714859442598,-357.99,0.0004098,2]
[325419884,1714859442639,-372403.64843525,0.0004098,2]
[325419885,1714859442651,-57436.22661864,0.0004098,2]
[325419886,1714859442663,-339.158849,0.0004098,30]
[325419887,1714859442675,-450.52764797,0.0004098,4]
[325419888,1714859442690,-175.70038545,0.0004098,2]
[325419889,1714859442702,-485.63410806,0.0004098,4]
[325419890,1714859442714,-3359.87703961,0.0004098,4]
[325419891,1714859442726,-1832.72073135,0.0004098,4]
[325419892,1714859442738,-681.22053484,0.0004098,15]
[325419893,1714859442750,-167.33803535,0.0004098,2]
[325419895,1714859442762,-155.0,0.0004098,2]
[325419896,1714859442774,-198.15033249,0.0004098,4]
[325419897,1714859442786,-840.5911293,0.0004098,30]
[325419898,1714859442797,-200.48200879,0.0004098,4]
[325419899,1714859442809,-160.28594505,0.0004098,4]
[325419900,1714859442821,-500.0,0.0004098,7]
[325419901,1714859442833,-500.0,0.0004098,7]
[325419902,1714859442844,-500.0,0.0004098,7]
[325419903,1714859442855,-500.0,0.0004098,7]
[325419904,1714859442867,-500.0,0.0004098,7]
[325419905,1714859442879,-500.0,0.0004098,7]
[325419906,1714859442891,-495.32660869,0.00040999,7]
[325419907,1714859442905,-1597.18264863,0.00041,3]
[325419908,1714859442917,-547790.41627275,0.00041,35]
[325419909,1714859442932,-3204.04329008,0.00041,35]
[325419913,1714859442947,-5209.88726581,0.00041,35]
[325419921,1714859445246,-310.998,0.00038904,120]
[325419922,1714859445271,-689.002,0.00038904,120]
[325419923,1714859445282,-6161.00443459,0.00041,35]
[325419930,1714859447144,-1103.848161,0.00037,2]
[325419931,1714859447349,-896.151839,0.00037,2]
[325419932,1714859447359,-186.4480381,0.00041,35]
[325419957,1714860631829,-1378.2552128,0.00011442,2]
[325419958,1714860631839,-155.0,0.00011443,2]
[325419960,1714860631848,-527.68736117,0.00011443,2]
[325419962,1714860631857,-397.99431339,0.00011443,2]
[325419963,1714860631870,-138.57498954,0.00011443,2]
[325419964,1714860631880,-155.0,0.00011444,2]